[Event "Late-Titled-Tuesday-Blitz-October-10-2023"]
[Site "Chess.com"]
[Date "2023.10.10"]
[Round "8"]
[White "SpeedofLight0"]
[Black "greekplayer1"]
[Result "0-1"]
[WhiteElo "2988"]
[BlackElo "2704"]
[TimeControl "180+1"]
[EndTime "15:23:48 PDT"]
[Termination "greekplayer1 won by checkmate"]

1. Nf3 {[%clk 0:02:59.4]} 1... d5 {[%clk 0:02:58.1]} 2. b3 {[%clk 0:02:59.1]}
2... c5 {[%clk 0:02:55.4]} 3. Bb2 {[%clk 0:03:00]} 3... Nc6 {[%clk 0:02:56.1]}
4. e3 {[%clk 0:03:00]} 4... Nf6 {[%clk 0:02:55.4]} 5. Bb5 {[%clk 0:03:00.1]}
5... g6 {[%clk 0:02:53.1]} 6. Ne5 {[%clk 0:02:58.9]} 6... Qc7 {[%clk 0:02:52.7]}
7. d3 {[%clk 0:02:56.6]} 7... Bg7 {[%clk 0:02:34.2]} 8. Bxc6+ {[%clk 0:02:55.7]}
8... bxc6 {[%clk 0:02:33.8]} 9. O-O {[%clk 0:02:48]} 9... Ng4 {[%clk 0:02:29.8]}
10. d4 {[%clk 0:02:43.8]} 10... Nxe5 {[%clk 0:02:09.3]} 11. dxe5 {[%clk
0:02:43.6]} 11... Bxe5 {[%clk 0:02:10.2]} 12. Qc1 {[%clk 0:02:41.9]} 12... Bxh2+
{[%clk 0:02:08.6]} 13. Kh1 {[%clk 0:02:41.7]} 13... Be5 {[%clk 0:02:09.1]} 14.
Nd2 {[%clk 0:02:40.5]} 14... O-O {[%clk 0:02:04.4]} 15. Nf3 {[%clk 0:02:37.8]}
15... Bxb2 {[%clk 0:02:01.1]} 16. Qxb2 {[%clk 0:02:38.7]} 16... f6 {[%clk
0:02:00.6]} 17. c4 {[%clk 0:02:36.4]} 17... Bg4 {[%clk 0:01:54]} 18. Nh2 {[%clk
0:02:36]} 18... Be6 {[%clk 0:01:47.9]} 19. Rac1 {[%clk 0:02:35.5]} 19... Rac8
{[%clk 0:01:45.8]} 20. Qa3 {[%clk 0:02:34.3]} 20... Qb6 {[%clk 0:01:45.3]} 21.
Rfd1 {[%clk 0:02:33]} 21... Rfd8 {[%clk 0:01:44.7]} 22. Rd2 {[%clk 0:02:31.4]}
22... dxc4 {[%clk 0:01:43.7]} 23. Rxd8+ {[%clk 0:02:30.9]} 23... Rxd8 {[%clk
0:01:44.6]} 24. bxc4 {[%clk 0:02:31.4]} 24... Rd2 {[%clk 0:01:39.1]} 25. Kg1
{[%clk 0:02:10.3]} 25... Qb2 {[%clk 0:01:34.6]} 26. Qxb2 {[%clk 0:01:58.2]}
26... Rxb2 {[%clk 0:01:35.5]} 27. Nf1 {[%clk 0:01:57.4]} 27... Rxa2 {[%clk
0:01:34.8]} 28. Ng3 {[%clk 0:01:57.7]} 28... Ra4 {[%clk 0:01:30.8]} 29. Rb1
{[%clk 0:01:57.5]} 29... Rb4 {[%clk 0:01:30.7]} 30. Ra1 {[%clk 0:01:57.5]} 30...
Rxc4 {[%clk 0:01:13.6]} 31. Rxa7 {[%clk 0:01:57.2]} 31... Kf7 {[%clk 0:01:13.7]}
32. e4 {[%clk 0:01:52.2]} 32... h5 {[%clk 0:01:11.5]} 33. f3 {[%clk 0:01:52.3]}
33... Rc2 {[%clk 0:01:10.7]} 34. Rc7 {[%clk 0:01:51.1]} 34... h4 {[%clk
0:01:09.1]} 35. Nf1 {[%clk 0:01:50.5]} 35... h3 {[%clk 0:00:58.1]} 36. gxh3
{[%clk 0:01:49.6]} 36... Bxh3 {[%clk 0:00:59]} 37. Ne3 {[%clk 0:01:49.2]} 37...
Re2 {[%clk 0:00:57.3]} 38. Nc4 {[%clk 0:01:47.2]} 38... Rg2+ {[%clk 0:00:54.3]}
39. Kh1 {[%clk 0:01:46.9]} 39... Rc2 {[%clk 0:00:52.4]} 40. Na5 {[%clk
0:01:41.5]} 40... Bg2+ {[%clk 0:00:51.7]} 41. Kg1 {[%clk 0:01:41.4]} 41... Bxf3
{[%clk 0:00:46.8]} 42. Nxc6 {[%clk 0:01:41.4]} 42... Ke6 {[%clk 0:00:42.5]} 43.
Rxe7+ {[%clk 0:01:30.2]} 43... Kd6 {[%clk 0:00:42.4]} 44. Rf7 {[%clk 0:01:30.6]}
44... Bxe4 {[%clk 0:00:30]} 45. Rxf6+ {[%clk 0:01:30.2]} 45... Kd5 {[%clk
0:00:29.5]} 46. Kf1 {[%clk 0:01:25.6]} 46... Rh2 {[%clk 0:00:19.6]} 47. Ke1
{[%clk 0:01:18]} 47... c4 {[%clk 0:00:19]} 48. Na5 {[%clk 0:00:56.1]} 48... c3
{[%clk 0:00:17.9]} 49. Rf8 {[%clk 0:00:54.1]} 49... Rh1+ {[%clk 0:00:14.2]} 50.
Ke2 {[%clk 0:00:54.2]} 50... c2 {[%clk 0:00:15.1]} 51. Rd8+ {[%clk 0:00:53.8]}
51... Ke6 {[%clk 0:00:10.7]} 52. Re8+ {[%clk 0:00:47.5]} 52... Kf5 {[%clk
0:00:10.2]} 53. Rf8+ {[%clk 0:00:39.2]} 53... Kg5 {[%clk 0:00:09.3]} 54. Nb3
{[%clk 0:00:39.7]} 54... Bd5 {[%clk 0:00:07.4]} 55. Nc1 {[%clk 0:00:38.8]} 55...
Rxc1 {[%clk 0:00:06.7]} 56. Kd2 {[%clk 0:00:39.5]} 56... Rg1 {[%clk 0:00:06.1]}
57. Kxc2 {[%clk 0:00:39.9]} 57... Be4+ {[%clk 0:00:06.5]} 58. Kd2 {[%clk
0:00:40.4]} 58... Bf5 {[%clk 0:00:07.4]} 59. Ke3 {[%clk 0:00:40.9]} 59... Rg3+
{[%clk 0:00:07.3]} 60. Kf2 {[%clk 0:00:41.5]} 60... Kf4 {[%clk 0:00:07.5]} 61.
Rb8 {[%clk 0:00:40.8]} 61... Rc3 {[%clk 0:00:07.5]} 62. Rb4+ {[%clk 0:00:40.1]}
62... Be4 {[%clk 0:00:08]} 63. Rb6 {[%clk 0:00:38.1]} 63... Rc2+ {[%clk
0:00:08.9]} 64. Ke1 {[%clk 0:00:38.2]} 64... g5 {[%clk 0:00:09.7]} 65. Kd1
{[%clk 0:00:37.6]} 65... Rh2 {[%clk 0:00:09.3]} 66. Rf6+ {[%clk 0:00:37.9]}
66... Ke3 {[%clk 0:00:09]} 67. Kc1 {[%clk 0:00:38.1]} 67... g4 {[%clk
0:00:08.2]} 68. Rf1 {[%clk 0:00:37.1]} 68... Rc2+ {[%clk 0:00:08.3]} 69. Kd1
{[%clk 0:00:37.3]} 69... Rb2 {[%clk 0:00:07.5]} 70. Re1+ {[%clk 0:00:37.9]}
70... Kd3 {[%clk 0:00:07.2]} 71. Re2 {[%clk 0:00:38.8]} 71... Rb1# {[%clk
0:00:06.3]} 0-1

[Event "Late-Titled-Tuesday-Blitz-October-10-2023"]
[Site "Chess.com"]
[Date "2023.10.10"]
[Round "8"]
[White "Blackwhite017"]
[Black "NotFischer"]
[Result "1-0"]
[WhiteElo "2050"]
[BlackElo "2263"]
[TimeControl "180+1"]
[EndTime "15:23:51 PDT"]
[Termination "Blackwhite017 won by resignation"]

1. e4 {[%clk 0:03:00.9]} 1... d5 {[%clk 0:02:58.6]} 2. exd5 {[%clk 0:03:00.5]}
2... Qxd5 {[%clk 0:02:59.5]} 3. Nf3 {[%clk 0:03:00.2]} 3... Bg4 {[%clk
0:02:58.9]} 4. Be2 {[%clk 0:03:00.5]} 4... Nc6 {[%clk 0:02:57.9]} 5. h3 {[%clk
0:03:00.9]} 5... Bxf3 {[%clk 0:02:51.5]} 6. Bxf3 {[%clk 0:03:01.8]} 6... Qe6+
{[%clk 0:02:45.5]} 7. Kf1 {[%clk 0:02:59.4]} 7... Nf6 {[%clk 0:02:41.9]} 8. c3
{[%clk 0:02:58.2]} 8... h5 {[%clk 0:02:35.2]} 9. d4 {[%clk 0:02:53.4]} 9...
O-O-O {[%clk 0:02:35]} 10. Qa4 {[%clk 0:02:48.9]} 10... Kb8 {[%clk 0:02:28.8]}
11. Bxc6 {[%clk 0:02:46.9]} 11... Qxc6 {[%clk 0:02:28]} 12. Qxc6 {[%clk
0:02:46.5]} 12... bxc6 {[%clk 0:02:28.9]} 13. Be3 {[%clk 0:02:43.6]} 13... e6
{[%clk 0:02:26.7]} 14. Nd2 {[%clk 0:02:41]} 14... Nd5 {[%clk 0:02:24.4]} 15. Nc4
{[%clk 0:02:36.8]} 15... Nxe3+ {[%clk 0:02:20.2]} 16. fxe3 {[%clk 0:02:37.7]}
16... c5 {[%clk 0:02:20.2]} 17. Ke2 {[%clk 0:02:33.5]} 17... cxd4 {[%clk
0:02:19.7]} 18. cxd4 {[%clk 0:02:33.6]} 18... c5 {[%clk 0:02:17.1]} 19. Ne5
{[%clk 0:02:32]} 19... Rc8 {[%clk 0:02:04.3]} 20. Nxf7 {[%clk 0:02:26.4]} 20...
Rg8 {[%clk 0:02:04.5]} 21. Rac1 {[%clk 0:02:20]} 21... Be7 {[%clk 0:01:55.2]}
22. Ne5 {[%clk 0:02:15.4]} 22... Kb7 {[%clk 0:01:45.3]} 23. Rhf1 {[%clk
0:02:12.6]} 23... Bf6 {[%clk 0:01:32.8]} 24. Nf3 {[%clk 0:01:32.7]} 24... cxd4
{[%clk 0:01:28.7]} 25. exd4 {[%clk 0:01:31.4]} 25... Rgd8 {[%clk 0:01:24.7]} 26.
Rxc8 {[%clk 0:01:26.3]} 26... Kxc8 {[%clk 0:01:14.9]} 27. Rc1+ {[%clk
0:01:24.3]} 27... Kb7 {[%clk 0:01:15.1]} 28. Rc4 {[%clk 0:01:15.8]} 28... Rd5
{[%clk 0:01:12.7]} 29. b3 {[%clk 0:01:13.7]} 29... a5 {[%clk 0:01:12.6]} 30. Rc5
{[%clk 0:01:03.9]} 30... Rxc5 {[%clk 0:01:07.8]} 31. dxc5 {[%clk 0:00:58.7]}
31... Kc6 {[%clk 0:01:08.7]} 32. Ke3 {[%clk 0:00:55.1]} 32... Kxc5 {[%clk
0:01:08.2]} 33. Ke4 {[%clk 0:00:51.6]} 33... Kb4 {[%clk 0:01:03.4]} 34. Nd2
{[%clk 0:00:51.8]} 34... Bc3 {[%clk 0:00:58.2]} 35. Nb1 {[%clk 0:00:45.8]} 35...
Be1 {[%clk 0:00:56.9]} 36. Ke5 {[%clk 0:00:41.9]} 36... Kc5 {[%clk 0:00:54.5]}
37. Kxe6 {[%clk 0:00:41.1]} 37... Kd4 {[%clk 0:00:55]} 38. Na3 {[%clk
0:00:28.9]} 38... Kc3 {[%clk 0:00:51]} 39. Nc4 {[%clk 0:00:29]} 39... a4 {[%clk
0:00:42.7]} 40. Kf7 {[%clk 0:00:27.9]} 40... g5 {[%clk 0:00:40.2]} 41. Kg6
{[%clk 0:00:27.7]} 41... g4 {[%clk 0:00:37.1]} 42. Kxh5 {[%clk 0:00:26.2]} 42...
gxh3 {[%clk 0:00:31.6]} 43. gxh3 {[%clk 0:00:27.1]} 43... axb3 {[%clk
0:00:31.4]} 44. axb3 {[%clk 0:00:27.2]} 44... Kxb3 {[%clk 0:00:32]} 45. Ne3
{[%clk 0:00:20.1]} 45... Ka2 {[%clk 0:00:28.3]} 46. Ng2 {[%clk 0:00:20.2]} 46...
Bg3 {[%clk 0:00:27.8]} 47. Kg4 {[%clk 0:00:19.9]} 47... Bf2 {[%clk 0:00:27.2]}
48. Kf3 {[%clk 0:00:20.3]} 48... Bd4 {[%clk 0:00:26.2]} 49. h4 {[%clk
0:00:20.6]} 49... Bf6 {[%clk 0:00:25.8]} 50. h5 {[%clk 0:00:20.9]} 50... Bg5
{[%clk 0:00:26.2]} 51. Kg4 {[%clk 0:00:20.8]} 51... Bh6 {[%clk 0:00:26.7]} 52.
Kf5 {[%clk 0:00:21.1]} 52... Bd2 {[%clk 0:00:26.8]} 53. Kg6 {[%clk 0:00:20.8]}
53... Bc3 {[%clk 0:00:24.7]} 54. h6 {[%clk 0:00:20.1]} 54... Kb2 {[%clk
0:00:24.5]} 55. Nf4 {[%clk 0:00:20]} 55... Bh8 {[%clk 0:00:22.3]} 56. Ne6 {[%clk
0:00:19.4]} 56... Kc2 {[%clk 0:00:21.8]} 57. Ng7 {[%clk 0:00:19.4]} 57... Kd3
{[%clk 0:00:21]} 58. Kh7 {[%clk 0:00:19.5]} 1-0

[Event "Late-Titled-Tuesday-Blitz-October-10-2023"]
[Site "Chess.com"]
[Date "2023.10.10"]
[Round "8"]
[White "FMJoseHerrera"]
[Black "mac0504"]
[Result "0-1"]
[WhiteElo "2732"]
[BlackElo "2588"]
[TimeControl "180+1"]
[EndTime "15:23:52 PDT"]
[Termination "mac0504 won on time"]

1. Nf3 {[%clk 0:03:00.9]} 1... Nf6 {[%clk 0:02:59.1]} 2. g3 {[%clk 0:03:00.7]}
2... Nc6 {[%clk 0:02:55.4]} 3. Bg2 {[%clk 0:03:01.6]} 3... e5 {[%clk 0:02:55.6]}
4. O-O {[%clk 0:03:01.7]} 4... Bc5 {[%clk 0:02:54.2]} 5. c3 {[%clk 0:03:01.2]}
5... Bb6 {[%clk 0:02:48.7]} 6. d4 {[%clk 0:03:00.1]} 6... O-O {[%clk 0:02:45.4]}
7. dxe5 {[%clk 0:02:59.2]} 7... Ng4 {[%clk 0:02:45.4]} 8. Bf4 {[%clk 0:02:54.3]}
8... Re8 {[%clk 0:02:39.3]} 9. Qd5 {[%clk 0:02:53]} 9... Qe7 {[%clk 0:02:25.3]}
10. a4 {[%clk 0:02:20.8]} 10... a5 {[%clk 0:02:20.7]} 11. Na3 {[%clk 0:02:17.5]}
11... Ncxe5 {[%clk 0:02:11.5]} 12. Rad1 {[%clk 0:02:03.3]} 12... d6 {[%clk
0:02:00]} 13. h3 {[%clk 0:01:54.9]} 13... Nxf3+ {[%clk 0:01:38.3]} 14. exf3
{[%clk 0:01:55.8]} 14... Nf6 {[%clk 0:01:20.3]} 15. Qd3 {[%clk 0:01:48.9]} 15...
Be6 {[%clk 0:01:18.3]} 16. Nb5 {[%clk 0:01:44.4]} 16... Bb3 {[%clk 0:01:15.4]}
17. Ra1 {[%clk 0:01:40.8]} 17... Qe2 {[%clk 0:01:13.8]} 18. Qb1 {[%clk
0:01:17.4]} 18... Nd5 {[%clk 0:01:04.5]} 19. Bc1 {[%clk 0:01:08.9]} 19... Bc4
{[%clk 0:00:48.1]} 20. Qf5 {[%clk 0:00:56.1]} 20... Bxf2+ {[%clk 0:00:34.3]} 21.
Rxf2 {[%clk 0:00:53.2]} 21... Qe1+ {[%clk 0:00:34.8]} 22. Bf1 {[%clk 0:00:27.4]}
22... Bxf1 {[%clk 0:00:34.8]} 23. Bd2 {[%clk 0:00:27.9]} 23... Qxa1 {[%clk
0:00:30.3]} 24. Rxf1 {[%clk 0:00:28.3]} 24... Qa2 {[%clk 0:00:20.1]} 25. Qd3
{[%clk 0:00:20.3]} 25... Nb6 {[%clk 0:00:17.1]} 26. Nxc7 {[%clk 0:00:19.9]}
26... Nxa4 {[%clk 0:00:06.2]} 27. Nxa8 {[%clk 0:00:18.3]} 27... Rxa8 {[%clk
0:00:06.2]} 28. Qxd6 {[%clk 0:00:18.2]} 28... Qxb2 {[%clk 0:00:05.7]} 29. Re1
{[%clk 0:00:17.1]} 29... Qb6+ {[%clk 0:00:04.1]} 30. Qxb6 {[%clk 0:00:16.7]}
30... Nxb6 {[%clk 0:00:05]} 31. Rb1 {[%clk 0:00:17.1]} 31... Nc4 {[%clk
0:00:04.9]} 32. Bc1 {[%clk 0:00:16]} 32... a4 {[%clk 0:00:02.6]} 33. Rxb7 {[%clk
0:00:16.6]} 33... a3 {[%clk 0:00:03.3]} 34. Bxa3 {[%clk 0:00:14.7]} 34... Nxa3
{[%clk 0:00:03.4]} 35. Kf2 {[%clk 0:00:14.2]} 35... g6 {[%clk 0:00:03.6]} 36.
Ke3 {[%clk 0:00:14.5]} 36... Nc4+ {[%clk 0:00:03.6]} 37. Kd4 {[%clk 0:00:14.8]}
37... Nd6 {[%clk 0:00:04.3]} 38. Rb6 {[%clk 0:00:14.7]} 38... Nf5+ {[%clk
0:00:04.7]} 39. Ke5 {[%clk 0:00:15.1]} 39... Nxg3 {[%clk 0:00:05.6]} 40. c4
{[%clk 0:00:15.1]} 40... Rc8 {[%clk 0:00:03.8]} 41. Kd5 {[%clk 0:00:14.8]} 41...
Nf5 {[%clk 0:00:04.2]} 42. c5 {[%clk 0:00:14.4]} 42... Ne3+ {[%clk 0:00:04.5]}
43. Kd4 {[%clk 0:00:14.4]} 43... Nf5+ {[%clk 0:00:04.8]} 44. Kd5 {[%clk
0:00:14.9]} 44... Rd8+ {[%clk 0:00:04.4]} 45. Ke5 {[%clk 0:00:15]} 45... Kf8
{[%clk 0:00:02.8]} 46. c6 {[%clk 0:00:15.4]} 46... Ke7 {[%clk 0:00:03.1]} 47.
Rb7+ {[%clk 0:00:15.7]} 47... Ke8 {[%clk 0:00:03.4]} 48. f4 {[%clk 0:00:11.1]}
48... Rc8 {[%clk 0:00:03.5]} 49. Rb6 {[%clk 0:00:05.3]} 49... Ne7 {[%clk
0:00:03.8]} 50. Kd6 {[%clk 0:00:05.8]} 50... Rxc6+ {[%clk 0:00:03.8]} 51. Rxc6
{[%clk 0:00:06.4]} 51... Nxc6 {[%clk 0:00:04.7]} 52. Kxc6 {[%clk 0:00:07.3]}
52... Ke7 {[%clk 0:00:05.3]} 53. Kd5 {[%clk 0:00:08.2]} 53... Kf6 {[%clk
0:00:06.1]} 54. Ke4 {[%clk 0:00:08.9]} 54... Ke6 {[%clk 0:00:06.5]} 55. h4
{[%clk 0:00:08.8]} 55... h5 {[%clk 0:00:06.6]} 0-1

[Event "Late-Titled-Tuesday-Blitz-October-10-2023"]
[Site "Chess.com"]
[Date "2023.10.10"]
[Round "8"]
[White "Sofiia_Hryzlova"]
[Black "TheMagician"]
[Result "1-0"]
[WhiteElo "2341"]
[BlackElo "2203"]
[TimeControl "180+1"]
[EndTime "15:23:55 PDT"]
[Termination "Sofiia_Hryzlova won on time"]

1. Nf3 {[%clk 0:02:41.2]} 1... d5 {[%clk 0:02:57.4]} 2. a4 {[%clk 0:02:36.8]}
2... a5 {[%clk 0:02:45.8]} 3. h4 {[%clk 0:02:25.6]} 3... h6 {[%clk 0:02:40]} 4.
h5 {[%clk 0:02:24.7]} 4... Bf5 {[%clk 0:02:39.4]} 5. d3 {[%clk 0:02:22.2]} 5...
e6 {[%clk 0:02:35.7]} 6. Nc3 {[%clk 0:02:20.1]} 6... Bb4 {[%clk 0:02:26.2]} 7.
Rh4 {[%clk 0:02:13.5]} 7... Be7 {[%clk 0:02:11]} 8. Rh1 {[%clk 0:02:12]} 8...
Nf6 {[%clk 0:02:03]} 9. Bf4 {[%clk 0:02:04.4]} 9... Bd6 {[%clk 0:01:59.8]} 10.
Qd2 {[%clk 0:01:59.8]} 10... c6 {[%clk 0:01:48.3]} 11. Ne5 {[%clk 0:01:55.3]}
11... Qc7 {[%clk 0:01:45.9]} 12. d4 {[%clk 0:01:50.9]} 12... Nbd7 {[%clk
0:01:41.2]} 13. Nxd7 {[%clk 0:01:47.5]} 13... Nxd7 {[%clk 0:01:26.7]} 14. Bxd6
{[%clk 0:01:44.8]} 14... Qxd6 {[%clk 0:01:26.3]} 15. e3 {[%clk 0:01:43.8]} 15...
e5 {[%clk 0:01:23.9]} 16. Ra3 {[%clk 0:01:38.8]} 16... O-O {[%clk 0:01:18.8]}
17. Be2 {[%clk 0:01:36.4]} 17... Rae8 {[%clk 0:01:09.9]} 18. Kd1 {[%clk
0:01:34.9]} 18... Re7 {[%clk 0:01:06]} 19. Kc1 {[%clk 0:01:34.5]} 19... Rfe8
{[%clk 0:01:06.1]} 20. Rd1 {[%clk 0:01:27]} 20... Qf6 {[%clk 0:01:02.8]} 21. Rb3
{[%clk 0:01:25.8]} 21... b6 {[%clk 0:01:00.4]} 22. Rg1 {[%clk 0:01:16.2]} 22...
Bh7 {[%clk 0:00:54.9]} 23. Bg4 {[%clk 0:01:09.2]} 23... exd4 {[%clk 0:00:44]}
24. Qxd4 {[%clk 0:01:07.2]} 24... Qxd4 {[%clk 0:00:39.2]} 25. exd4 {[%clk
0:01:07]} 25... Nf6 {[%clk 0:00:37.7]} 26. Bf3 {[%clk 0:01:05]} 26... Rb8 {[%clk
0:00:35.2]} 27. Kd2 {[%clk 0:01:02.9]} 27... Kf8 {[%clk 0:00:34.7]} 28. Nd1
{[%clk 0:00:58]} 28... Ke8 {[%clk 0:00:33.3]} 29. Re3 {[%clk 0:00:57.4]} 29...
Kd7 {[%clk 0:00:31.8]} 30. Rxe7+ {[%clk 0:00:56.8]} 30... Kxe7 {[%clk
0:00:31.7]} 31. Ne3 {[%clk 0:00:57.5]} 31... Kd6 {[%clk 0:00:21.6]} 32. g4
{[%clk 0:00:55.1]} 32... Be4 {[%clk 0:00:21.1]} 33. Be2 {[%clk 0:00:55.3]} 33...
Bh7 {[%clk 0:00:15]} 34. f3 {[%clk 0:00:55.3]} 34... Ng8 {[%clk 0:00:13.2]} 35.
Bd3 {[%clk 0:00:54.5]} 35... Bxd3 {[%clk 0:00:12]} 36. Kxd3 {[%clk 0:00:55.4]}
36... Ne7 {[%clk 0:00:11.8]} 37. Ra1 {[%clk 0:00:55]} 37... f6 {[%clk
0:00:10.5]} 38. Rh1 {[%clk 0:00:54.8]} 38... c5 {[%clk 0:00:11]} 39. c3 {[%clk
0:00:54.5]} 39... c4+ {[%clk 0:00:11.4]} 40. Kc2 {[%clk 0:00:52.8]} 40... b5
{[%clk 0:00:12.3]} 41. axb5 {[%clk 0:00:52.1]} 41... Rxb5 {[%clk 0:00:13]} 42.
Rg1 {[%clk 0:00:52.6]} 42... a4 {[%clk 0:00:12.9]} 43. Ra1 {[%clk 0:00:51.9]}
43... Ra5 {[%clk 0:00:13.2]} 44. Kd2 {[%clk 0:00:47.3]} 44... Ke6 {[%clk
0:00:13.4]} 45. Re1 {[%clk 0:00:46.9]} 45... Kd6 {[%clk 0:00:12.6]} 46. Ra1
{[%clk 0:00:44.9]} 46... Ke6 {[%clk 0:00:12.8]} 47. Ng2 {[%clk 0:00:44.6]} 47...
f5 {[%clk 0:00:12.6]} 48. Nf4+ {[%clk 0:00:45.1]} 48... Kf6 {[%clk 0:00:12.3]}
49. Ke3 {[%clk 0:00:41.7]} 49... Ra8 {[%clk 0:00:10.8]} 50. Kf2 {[%clk
0:00:40.4]} 50... Kg5 {[%clk 0:00:10.2]} 51. Kg3 {[%clk 0:00:40.2]} 51... fxg4
{[%clk 0:00:10]} 52. fxg4 {[%clk 0:00:40.4]} 52... Kf6 {[%clk 0:00:10.6]} 53.
Rf1 {[%clk 0:00:38.6]} 53... g5 {[%clk 0:00:06.2]} 54. Nxd5+ {[%clk 0:00:35.1]}
54... Ke6 {[%clk 0:00:05.9]} 55. Nc7+ {[%clk 0:00:35.3]} 55... Kd6 {[%clk
0:00:05.4]} 56. Nxa8 {[%clk 0:00:35.6]} 56... Nd5 {[%clk 0:00:05.5]} 57. Rf5
{[%clk 0:00:33.7]} 57... a3 {[%clk 0:00:05.6]} 58. bxa3 {[%clk 0:00:33.4]} 58...
Ne3 {[%clk 0:00:05.3]} 59. Rxg5 {[%clk 0:00:30.3]} 59... Nd1 {[%clk 0:00:04.9]}
60. Nb6 {[%clk 0:00:26.9]} 60... hxg5 {[%clk 0:00:02.6]} 61. h6 {[%clk
0:00:27.2]} 1-0

[Event "Late-Titled-Tuesday-Blitz-October-10-2023"]
[Site "Chess.com"]
[Date "2023.10.10"]
[Round "8"]
[White "sergeikim"]
[Black "Cambek64"]
[Result "1/2-1/2"]
[WhiteElo "2574"]
[BlackElo "2412"]
[TimeControl "180+1"]
[EndTime "15:24:05 PDT"]
[Termination "Game drawn by repetition"]

1. d4 {[%clk 0:03:00.9]} 1... c5 {[%clk 0:02:56.9]} 2. d5 {[%clk 0:03:00.6]}
2... e5 {[%clk 0:02:57.4]} 3. Nc3 {[%clk 0:03:00.1]} 3... d6 {[%clk 0:02:57.3]}
4. e4 {[%clk 0:03:00]} 4... Nf6 {[%clk 0:02:57.4]} 5. Be2 {[%clk 0:02:59.2]}
5... Be7 {[%clk 0:02:56.9]} 6. Nf3 {[%clk 0:02:59.2]} 6... O-O {[%clk
0:02:57.2]} 7. Nd2 {[%clk 0:02:59]} 7... Ne8 {[%clk 0:02:54]} 8. Nc4 {[%clk
0:02:58]} 8... Bg5 {[%clk 0:02:48]} 9. Bg4 {[%clk 0:02:43.6]} 9... Bxc1 {[%clk
0:02:46.5]} 10. Rxc1 {[%clk 0:02:42.9]} 10... Bxg4 {[%clk 0:02:34.8]} 11. Qxg4
{[%clk 0:02:41.8]} 11... Nd7 {[%clk 0:02:32.6]} 12. O-O {[%clk 0:02:38.1]} 12...
a6 {[%clk 0:02:31]} 13. a4 {[%clk 0:02:37.2]} 13... b6 {[%clk 0:02:27.5]} 14. f4
{[%clk 0:02:26.2]} 14... exf4 {[%clk 0:02:26.2]} 15. Rxf4 {[%clk 0:02:25.9]}
15... Qe7 {[%clk 0:02:23.1]} 16. Qg3 {[%clk 0:02:06.4]} 16... Rb8 {[%clk
0:02:09.8]} 17. Rcf1 {[%clk 0:01:56.1]} 17... Ne5 {[%clk 0:02:07.2]} 18. Ne3
{[%clk 0:01:55.5]} 18... g6 {[%clk 0:01:54.9]} 19. h4 {[%clk 0:01:51.9]} 19...
Kh8 {[%clk 0:01:51.3]} 20. Ncd1 {[%clk 0:01:45]} 20... Ng7 {[%clk 0:01:51.2]}
21. Qg5 {[%clk 0:01:39]} 21... Rb7 {[%clk 0:01:40.3]} 22. Qxe7 {[%clk
0:01:23.5]} 22... Rxe7 {[%clk 0:01:40.5]} 23. Rf6 {[%clk 0:01:23.9]} 23... Ne8
{[%clk 0:01:39.1]} 24. R6f4 {[%clk 0:01:22]} 24... h5 {[%clk 0:01:35.6]} 25. Nf2
{[%clk 0:01:20]} 25... Kg7 {[%clk 0:01:28.5]} 26. Nd3 {[%clk 0:01:19.8]} 26...
Nc7 {[%clk 0:01:19.6]} 27. Nxe5 {[%clk 0:01:15.5]} 27... Rxe5 {[%clk 0:01:19.5]}
28. Nc4 {[%clk 0:01:15.1]} 28... Re7 {[%clk 0:01:17.1]} 29. Nxd6 {[%clk
0:01:12.6]} 29... b5 {[%clk 0:01:10]} 30. a5 {[%clk 0:01:10.8]} 30... c4 {[%clk
0:01:08.8]} 31. R1f3 {[%clk 0:00:50]} 31... f6 {[%clk 0:01:07.2]} 32. b3 {[%clk
0:00:43.9]} 32... cxb3 {[%clk 0:01:04.6]} 33. cxb3 {[%clk 0:00:43.7]} 33... f5
{[%clk 0:01:03.2]} 34. exf5 {[%clk 0:00:40.4]} 34... Nxd5 {[%clk 0:01:03.6]} 35.
Rd4 {[%clk 0:00:37.6]} 35... Nf6 {[%clk 0:01:01.5]} 36. fxg6 {[%clk 0:00:32.8]}
36... Kxg6 {[%clk 0:00:56.6]} 37. Rd1 {[%clk 0:00:25.3]} 37... Rd8 {[%clk
0:00:56.3]} 38. Rfd3 {[%clk 0:00:24.8]} 38... Red7 {[%clk 0:00:55.8]} 39. R3d2
{[%clk 0:00:21.9]} 39... Ng8 {[%clk 0:00:43.8]} 40. Ne4 {[%clk 0:00:20.3]} 40...
Rxd2 {[%clk 0:00:43.3]} 41. Rxd2 {[%clk 0:00:20.7]} 41... Rxd2 {[%clk
0:00:43.4]} 42. Nxd2 {[%clk 0:00:20.9]} 42... Kf5 {[%clk 0:00:43.7]} 43. Nf3
{[%clk 0:00:19.9]} 43... Ne7 {[%clk 0:00:40.3]} 44. Nd4+ {[%clk 0:00:19.7]}
44... Ke4 {[%clk 0:00:38.9]} 45. Ne6 {[%clk 0:00:18.9]} 45... Kd3 {[%clk
0:00:37.8]} 46. Nc7 {[%clk 0:00:18.1]} 46... Nc6 {[%clk 0:00:35.9]} 47. Nxa6
{[%clk 0:00:17.8]} 47... Nxa5 {[%clk 0:00:36.1]} 48. b4 {[%clk 0:00:17]} 48...
Nc6 {[%clk 0:00:35.7]} 49. Nc7 {[%clk 0:00:16.7]} 49... Kc4 {[%clk 0:00:35]} 50.
Ne6 {[%clk 0:00:16.2]} 50... Nxb4 {[%clk 0:00:34.6]} 51. Nf4 {[%clk 0:00:16.5]}
51... Nd3 {[%clk 0:00:34]} 52. Nxh5 {[%clk 0:00:11.5]} 52... b4 {[%clk
0:00:34.3]} 53. Nf6 {[%clk 0:00:12.1]} 53... b3 {[%clk 0:00:33.9]} 54. Ne4
{[%clk 0:00:12.7]} 54... Kd4 {[%clk 0:00:31.7]} 55. Nd2 {[%clk 0:00:12.3]} 55...
b2 {[%clk 0:00:32.2]} 56. h5 {[%clk 0:00:12.2]} 56... Ne5 {[%clk 0:00:27.5]} 57.
h6 {[%clk 0:00:10.8]} 57... Kd3 {[%clk 0:00:26.5]} 58. Nb1 {[%clk 0:00:10.9]}
58... Kc2 {[%clk 0:00:26.2]} 59. Na3+ {[%clk 0:00:11.1]} 59... Kb3 {[%clk
0:00:25.9]} 60. Nb1 {[%clk 0:00:11.2]} 60... Kc2 {[%clk 0:00:20.7]} 61. Na3+
{[%clk 0:00:11.3]} 61... Kb3 {[%clk 0:00:19.6]} 62. Nb1 {[%clk 0:00:11.4]} 62...
Kc2 {[%clk 0:00:19.4]} 1/2-1/2